bitfinex/quotes_ETHUSD_20241004
["timestamp","ask_amount","ask_price","bid_price","bid_amount"]
[1728056668730,0.492806,2397.6,2397.2,4.19270655]
[1728056668731,0.492806,2397.6,2397.2,4.17152]
[1728056669372,0.492806,2397.6,2397.2,8.34296]
[1728056669669,0.492806,2397.6,2397.2,4.17144]
[1728056669874,4.663756,2397.6,2397.1,4.17162]
[1728056670366,4.663756,2397.6,2397.1,4.15512]
[1728056671334,4.663756,2397.6,2397.1,4.18619749]
[1728056671852,4.663756,2397.6,2397.1,4.15512]
[1728056673026,8.34141,2397.7,2397.2,4.17143]
[1728056673227,4.17066,2397.7,2397.1,4.15512]
[1728056673462,4.17087,2397.6,2397.1,4.15512]
[1728056673762,4.17102,2397.5,2397.1,4.15512]
[1728056673971,0.834189,2397.5,2397.0,4.17183]
[1728056674267,4.17119,2397.4,2397.0,4.17183]
[1728056675164,4.17102,2397.5,2397.0,8.34359]
[1728056675364,4.1712,2397.4,2397.0,4.17176]
[1728056675562,4.1712,2397.4,2397.0,8.34356]
[1728056675732,4.1712,2397.4,2397.0,4.17176]
[1728056675932,4.17094,2397.6,2397.0,8.34351]
[1728056675933,4.17101,2397.5,2397.0,8.34351]
[1728056676127,4.17111,2397.5,2397.0,4.17175]
[1728056676333,4.1712,2397.4,2397.0,4.17187]
[1728056676955,4.95846,2397.3,2396.8,4.17209]
[1728056677161,4.95851,2397.3,2396.8,4.17209]
[1728056677469,4.95851,2397.3,2396.7,8.2474]
[1728056677470,4.95851,2397.3,2396.9,4.17203]
[1728056677633,5.9549005,2397.3,2396.9,4.17203]
[1728056677987,4.17179,2397.1,2396.6,4.1724]
[1728056679288,4.17165,2397.2,2396.7,4.17238]
[1728056679590,8.3433,2397.2,2396.7,4.17238]
[1728056680150,4.17176,2397.1,2396.7,4.17238]
[1728056681593,4.17165,2397.2,2396.7,4.17238]
[1728056681800,8.34335,2397.2,2396.7,4.17238]
[1728056681964,9.256395,2397.2,2396.7,4.17238]
[1728056683177,5.084695,2397.2,2396.7,4.17238]
[1728056683376,4.17172,2397.1,2396.7,4.17238]
[1728056683777,0.913045,2397.2,2396.8,4.17221]
[1728056684175,0.913045,2397.2,2396.9,4.17204]
[1728056684913,0.7871,2397.3,2397.0,4.17178]
[1728056685091,4.95847,2397.3,2396.9,4.17204]
[1728056685883,0.7871,2397.3,2396.8,4.17209]
[1728056686220,0.7871,2397.3,2396.9,4.17204]
[1728056686519,0.7871,2397.3,2397.0,4.17187]
[1728056687485,4.95859,2397.3,2396.8,4.17209]
[1728056687687,4.95859,2397.3,2396.6,4.17243]
[1728056687688,4.17167,2397.2,2396.6,4.17243]
[1728056687902,4.17179,2397.1,2396.7,4.17232]
[1728056688298,0.7871,2397.3,2396.7,4.17232]
[1728056688299,4.95846,2397.3,2396.7,4.17232]
[1728056688472,4.1716,2397.2,2396.8,4.17221]
[1728056689700,4.17191,2397.0,2396.6,4.17255]
[1728056690104,4.17179,2397.1,2396.7,4.17229]
[1728056690416,4.17155,2397.2,2396.8,4.17222]
[1728056690617,4.94884822,2397.2,2396.5,3.0]
[1728056690781,4.94884822,2397.2,2396.6,4.17246]
[1728056690980,9.12052822,2397.2,2396.7,4.17226]
[1728056691318,4.94884822,2397.2,2396.7,4.17226]
[1728056691475,9.12051822,2397.2,2396.7,4.17226]
[1728056691674,9.12047822,2397.2,2396.7,4.17226]
[1728056691916,4.94884822,2397.2,2396.7,4.17226]
[1728056692118,4.17179,2397.1,2396.7,4.17226]
[1728056692319,4.94898822,2397.2,2396.7,8.34458]
[1728056692615,4.17181,2397.1,2396.7,4.17226]
[1728056693219,4.94884822,2397.2,2396.8,4.17221]
[1728056693424,4.94884822,2397.2,2396.7,4.17226]
[1728056693722,4.74536482,2397.1,2396.7,8.34458]
[1728056693920,4.74536482,2397.1,2396.7,4.17226]
[1728056694723,0.57359482,2397.1,2396.7,4.17226]
[1728056694892,4.1716,2397.2,2396.7,4.17226]
[1728056695082,4.17172,2397.1,2396.7,8.34456]
[1728056695283,4.17172,2397.1,2396.7,4.17226]
[1728056695590,4.17172,2397.1,2396.5,7.1726]
[1728056695591,4.17195,2397.0,2396.5,7.1726]
[1728056695924,4.17201,2397.0,2396.6,4.17255]
[1728056696125,5.006382,2397.0,2396.6,4.17255]
[1728056696426,4.17206,2396.9,2396.5,7.17272]
[1728056696643,4.17206,2396.9,2396.6,0.62723493]
[1728056696807,5.006382,2397.0,2396.6,4.17254]
[1728056698196,9.178372,2397.0,2396.6,4.17254]
[1728056698398,5.006362,2397.0,2396.6,4.17254]
[1728056698699,4.17231,2396.8,2396.4,0.8139]
[1728056699002,0.8096,2396.8,2396.5,4.79987367]
[1728056699341,0.8096,2396.8,2396.5,4.17264]
[1728056699539,0.8096,2396.8,2396.4,4.17276]
[1728056699540,4.98187,2396.8,2396.4,4.17292]
[1728056699842,4.98189,2396.8,2396.4,4.17292]
[1728056700000,5.94735962,2396.8,2396.4,4.17292]
[1728056700405,4.1724,2396.7,2396.3,4.17305]
[1728056700612,4.17241,2396.7,2396.4,0.62721603]
[1728056701401,4.17259,2396.6,2396.4,0.62721603]
[1728056701605,4.17241,2396.7,2396.4,0.62721603]
[1728056701845,4.81722158,2396.7,2396.4,0.62721603]
[1728056702753,4.17265,2396.6,2396.4,0.62721603]
[1728056703412,4.81724158,2396.7,2396.4,0.62721603]
[1728056703840,4.17259,2396.6,2396.4,0.62721603]
[1728056705174,4.81728158,2396.7,2396.4,0.62721603]
[1728056706481,4.17261,2396.6,2396.4,0.62721603]
[1728056707477,4.81725158,2396.7,2396.4,0.62721603]
[1728056708036,4.97185,2396.5,2396.4,0.62721603]
[1728056708238,8.890984,2396.5,2396.4,0.62721603]
[1728056708441,4.97185,2396.5,2396.4,0.62721603]
[1728056710072,4.17275,2396.5,2396.4,0.62721603]
[1728056710892,4.17275,2396.5,2396.0,5.0006]
[1728056711094,4.17294,2396.4,2396.0,5.0006]
[1728056711388,4.17318,2396.3,2396.0,0.827]
[1728056711538,4.17344,2396.1,2396.0,0.827]
[1728056711744,4.17366,2396.0,2395.8,0.8005]
[1728056711984,4.17366,2396.0,2395.7,0.62733907]
[1728056712167,4.17366,2396.0,2395.6,4.9989]
[1728056712352,4.17348,2396.1,2395.6,9.17306]
[1728056712555,8.34704,2396.1,2395.6,9.17308]
[1728056712757,4.17362,2396.0,2395.6,4.99886]
[1728056712986,4.17337,2396.2,2395.6,4.999]
[1728056713304,4.17355,2396.1,2395.6,4.999]
[1728056713589,4.17369,2396.0,2395.6,4.99894]
[1728056714176,4.17369,2396.0,2395.6,0.8247]
[1728056715088,4.691834,2396.4,2395.6,4.99888]
[1728056715274,4.17354,2396.1,2395.7,4.17404]
[1728056715729,4.17354,2396.1,2395.6,4.99888]
[1728056715730,4.17354,2396.1,2395.6,4.99899]
[1728056716042,4.17405,2395.8,2395.6,0.8247]
[1728056718091,4.17414,2395.7,2395.4,3.8277]
[1728056718705,4.17435,2395.6,2395.1,5.00286]
[1728056718896,8.34878,2395.6,2395.1,9.1779]
[1728056719228,4.17435,2395.6,2395.1,5.00274]
[1728056719393,4.17435,2395.6,2395.2,4.175]
[1728056719837,4.17415,2395.7,2395.3,4.17482]
[1728056720199,4.17433,2395.6,2395.2,4.175]
[1728056720623,4.17433,2395.6,2395.2,8.34993]
[1728056720905,4.17433,2395.6,2395.2,8.34986]
[1728056721218,0.7853,2395.9,2395.1,0.8277]
[1728056721426,4.17369,2396.0,2395.5,4.99693]
[1728056721602,4.17369,2396.0,2395.6,4.17429]
[1728056722310,4.17369,2396.0,2395.5,4.99706]
[1728056722518,4.17396,2395.9,2395.5,4.99706]
[1728056723166,4.17405,2395.8,2395.5,0.8226]
[1728056723740,4.17391,2395.9,2395.5,4.99709]
[1728056724276,4.1737,2396.0,2395.6,4.17429]
[1728056724490,4.1737,2396.0,2395.6,4.17424]
[1728056724991,4.17387,2395.9,2395.5,4.99705]
[1728056725290,4.739534,2396.2,2395.5,4.99698]
[1728056725445,4.17365,2396.0,2395.6,4.17416]
[1728056726888,4.17365,2396.0,2395.6,8.34838]
[1728056727388,4.17347,2396.1,2395.7,4.17403]
[1728056728080,9.16719,2396.2,2395.7,4.17403]
[1728056728393,4.99377,2396.2,2395.7,4.17412]
[1728056728696,4.82791087,2396.1,2395.7,4.17412]
[1728056728863,0.65440087,2396.1,2395.7,4.17404]
[1728056729065,4.82786087,2396.1,2395.7,4.17404]
[1728056731020,9.00141087,2396.1,2395.7,4.17404]
[1728056731218,0.65440087,2396.1,2395.6,4.17414]
[1728056731421,4.82785087,2396.1,2395.7,4.17406]
[1728056733823,9.00139087,2396.1,2395.7,4.17406]
[1728056734024,4.82785087,2396.1,2395.7,4.17406]
[1728056734363,4.17428,2395.7,2395.2,3.7738]
[1728056734534,4.17421,2395.7,2395.2,7.94879]
[1728056734695,4.17421,2395.7,2395.3,4.17477]
[1728056735177,4.17432,2395.6,2395.2,12.12372]
[1728056735382,4.17432,2395.6,2395.2,7.94873]
[1728056735807,4.17457,2395.5,2395.2,0.7738]
[1728056736071,0.8017,2395.8,2395.1,3.0]
[1728056736248,4.17462,2395.5,2395.1,3.0]
[1728056736931,4.67173,2395.7,2395.1,7.1751]
[1728056737144,4.17452,2395.5,2395.1,7.1751]
[1728056737764,4.17467,2395.4,2395.0,4.97814]
[1728056738113,4.17467,2395.4,2395.1,4.17518]
[1728056738542,4.17467,2395.4,2395.0,4.97812]
[1728056738951,8.3495,2395.4,2395.0,4.97812]
[1728056739152,4.97568,2395.8,2395.0,0.8028]
[1728056739153,4.17484,2395.3,2395.0,0.8028]
[1728056739316,4.1747,2395.4,2395.0,4.97814]
[1728056739514,4.17461,2395.5,2395.1,4.17518]
[1728056739867,4.17461,2395.5,2395.1,4.17511]
[1728056740149,4.17461,2395.5,2395.0,0.8028]
[1728056740150,4.17468,2395.4,2395.0,4.97808]
[1728056740551,4.17457,2395.5,2395.1,4.17516]
[1728056740730,4.17457,2395.5,2395.0,4.97808]
[1728056740930,4.17476,2395.4,2395.0,4.97808]
[1728056741341,4.17476,2395.4,2395.0,4.97807]
[1728056741538,4.1745,2395.5,2395.1,4.17515]
[1728056741878,8.34912,2395.5,2395.1,4.17518]
[1728056742059,4.1745,2395.5,2395.1,4.17518]
[1728056742637,8.3491,2395.5,2395.1,4.17518]
[1728056743257,4.1745,2395.5,2395.1,4.17518]
[1728056743466,8.34915,2395.5,2395.1,4.17518]
[1728056743627,4.17466,2395.4,2395.1,4.17518]
[1728056744158,4.17466,2395.4,2395.0,4.97814]
[1728056744661,4.1745,2395.5,2395.1,4.17511]
[1728056745893,4.17433,2395.6,2395.2,4.17494]
[1728056746078,0.8017,2395.8,2395.0,0.8028]
[1728056746308,4.17466,2395.5,2395.0,4.97808]
[1728056746804,4.1748,2395.4,2395.0,4.97808]
[1728056747705,4.17484,2395.3,2395.0,0.8028]
[1728056748416,4.17502,2395.2,2395.0,0.8028]
[1728056748578,4.17502,2395.2,2394.8,4.9664]
[1728056749088,4.17484,2395.3,2394.8,4.9664]
[1728056749089,0.8061,2395.4,2394.8,4.9664]
[1728056749420,4.17488,2395.3,2394.9,4.1754]
[1728056751204,4.17488,2395.3,2394.9,4.17553]
[1728056752031,4.17453,2395.5,2395.0,4.17524]
[1728056752205,4.17453,2395.5,2395.1,4.17509]
[1728056753030,4.17453,2395.5,2394.8,0.7908]
[1728056753284,4.17494,2395.3,2394.9,4.17551]
[1728056753542,4.17494,2395.3,2394.8,4.96638]
[1728056753543,4.17511,2395.2,2394.8,4.96638]
[1728056753740,4.95104,2395.3,2394.9,4.17553]
[1728056754841,4.17475,2395.4,2395.0,4.17536]
[1728056755604,4.17485,2395.3,2394.9,4.17549]
[1728056756851,8.34956,2395.4,2395.0,4.17535]
[1728056757063,4.17475,2395.4,2395.0,4.17535]
[1728056757546,4.17453,2395.5,2395.1,4.17516]
[1728056758557,8.34911,2395.5,2395.1,4.17516]
[1728056758721,4.17453,2395.5,2395.1,4.17516]
[1728056759651,4.17469,2395.4,2395.0,4.17533]
[1728056759809,4.17469,2395.4,2395.0,8.35061]
[1728056760526,4.17469,2395.4,2395.0,4.17528]
[1728056760737,4.95935,2395.6,2395.0,4.17528]
[1728056760940,4.17463,2395.5,2395.1,4.17517]
[1728056761461,4.17468,2395.4,2395.0,4.17532]
[1728056761613,4.17456,2395.5,2395.1,4.17514]
[1728056761817,4.1747,2395.4,2395.1,1.0]
[1728056762123,4.17486,2395.3,2395.1,1.0]
[1728056762522,4.1747,2395.4,2395.1,1.0]
[1728056763252,4.95939,2395.6,2395.1,5.17512]
[1728056763425,4.99113,2395.9,2395.5,4.17442]
[1728056763767,4.17364,2396.0,2395.6,4.17421]
[1728056763928,5.64523087,2396.1,2395.7,4.17403]
[1728056764462,9.00151087,2396.1,2395.8,0.417403]
[1728056764625,9.00151087,2396.1,2395.7,4.17401]
[1728056764626,9.00147087,2396.1,2395.7,4.17401]
[1728056764831,4.82793087,2396.1,2395.7,4.17401]
[1728056765133,0.65440087,2396.1,2395.8,3.8048]
[1728056765342,0.65440087,2396.1,2395.9,3.919134]
[1728056765512,4.17259,2396.6,2396.2,4.17317]
[1728056765713,0.65428575,2396.4,2396.1,8.34666]
[1728056765909,4.82721575,2396.4,2396.0,4.99981]
[1728056766358,0.65428575,2396.4,2396.0,4.99981]
[1728056766520,4.82727575,2396.4,2396.0,4.99981]
[1728056766918,0.65428575,2396.4,2396.1,4.17343]
[1728056767865,0.65428575,2396.4,2396.2,3.0]
[1728056768042,0.65428575,2396.4,2396.1,4.17336]
[1728056768433,0.65428575,2396.4,2396.2,4.17323]
[1728056769268,0.65428575,2396.4,2396.0,0.8262]
[1728056769269,0.65428575,2396.4,2396.0,4.99978]
[1728056769423,4.82721575,2396.4,2396.0,4.99978]
[1728056769623,0.65428575,2396.4,2396.1,4.17343]
[1728056770220,0.65428575,2396.4,2396.2,4.17315]
[1728056770424,0.65428575,2396.4,2396.3,4.1731]
[1728056770819,0.7908,2396.8,2396.5,4.17263]
[1728056771021,0.826,2397.0,2396.5,4.17263]
[1728056771223,0.65422489,2396.8,2396.7,11.34455]
[1728056771531,4.9969,2397.6,2397.1,4.17161]
[1728056771739,0.65406807,2397.4,2397.1,4.17161]
[1728056772272,0.65406807,2397.4,2397.3,7.94475]
[1728056772625,0.65406807,2397.4,2397.3,0.7734]
[1728056772932,0.65406807,2397.4,2397.3,3.0]
[1728056773356,0.65406807,2397.4,2397.1,0.7734]
[1728056773525,5.65285807,2397.4,2397.0,4.17176]
[1728056774049,1.48166807,2397.4,2397.0,4.17176]
[1728056774248,5.65284807,2397.4,2397.0,4.17176]
[1728056774470,9.82411807,2397.4,2396.9,3.7851]
[1728056774670,4.17136,2397.3,2396.9,3.0]
[1728056774968,2.46407988,2397.4,2397.0,4.1718]
[1728056775260,4.17138,2397.3,2396.9,7.17193]
[1728056775461,4.17153,2397.2,2396.8,7.1721]
[1728056775822,0.8276,2397.1,2396.7,8.34457]
[1728056775980,0.8276,2397.1,2396.7,4.17225]
[1728056776161,4.99941,2397.1,2396.6,7.17248]
[1728056776475,0.8276,2397.1,2396.7,4.17237]
[1728056776656,4.99934,2397.1,2396.7,4.17237]
[1728056776839,4.99934,2397.1,2396.7,3.0]
[1728056777045,0.8276,2397.1,2396.7,7.17239]
[1728056777241,4.99939,2397.1,2396.7,7.17239]
[1728056777455,0.8276,2397.1,2396.7,7.17232]
[1728056777656,0.8276,2397.1,2396.7,11.34464]
[1728056778142,4.98748,2397.3,2396.8,4.17212]
[1728056778471,0.65406807,2397.4,2397.1,4.17167]
[1728056778684,0.65406807,2397.4,2397.1,8.34329]
[1728056778972,0.65406807,2397.4,2397.1,4.17162]
[1728056779334,0.65406807,2397.4,2397.2,4.99983]
[1728056779757,4.17147,2397.3,2396.9,3.0]
[1728056779980,1.42876807,2397.4,2396.7,7.92999]
[1728056780290,4.17137,2397.3,2396.8,4.17212]
[1728056780805,4.17137,2397.3,2396.9,4.17204]
[1728056781096,5.59995807,2397.4,2396.9,4.17204]
[1728056781298,9.77127807,2397.4,2396.9,4.17204]
[1728056781889,1.42876807,2397.4,2396.9,4.17204]
[1728056782093,0.65406807,2397.4,2397.2,3.0]
[1728056782290,0.65406807,2397.4,2397.1,7.92407]
[1728056782449,0.65406807,2397.4,2397.2,4.1714]
[1728056782853,0.65406807,2397.4,2397.3,7.17135]
[1728056783814,0.65394767,2397.9,2397.5,4.17096]
[1728056783964,0.65394767,2397.9,2397.6,4.17082]
[1728056784303,4.2879074,2398.1,2397.5,4.98206]
[1728056784304,0.1179374,2398.1,2397.8,4.17039]
[1728056784602,0.1179374,2398.1,2397.7,7.17063]
[1728056784892,0.1179374,2398.1,2397.7,7.17058]
[1728056785103,0.1179374,2398.1,2397.8,4.1704]
[1728056785393,0.1179374,2398.1,2397.7,3.0]
[1728056785594,0.1179374,2398.1,2397.8,4.17046]
[1728056786094,0.1179374,2398.1,2397.9,4.1703]
[1728056786607,0.1179374,2398.1,2397.7,7.17057]
[1728056786899,8.4580274,2398.1,2397.7,3.0]
[1728056787116,4.2879074,2398.1,2397.7,3.0]
[1728056787314,4.17021,2398.0,2397.5,4.1709]
[1728056787516,4.17021,2398.0,2397.6,4.17082]
[1728056788077,5.28246372,2398.1,2397.6,8.34156]
[1728056788288,4.2879874,2398.1,2397.7,7.17066]
[1728056788496,0.1179374,2398.1,2397.8,4.17037]
[1728056788904,4.2879774,2398.1,2397.7,7.17066]
[1728056789110,4.17043,2397.9,2397.4,4.17111]
[1728056789428,4.17043,2397.9,2397.1,3.919134]
[1728056789429,0.42883674,2397.9,2397.5,4.171]
[1728056789717,4.94487,2398.0,2397.6,4.17076]
[1728056789881,0.7747,2398.0,2397.7,4.17063]
[1728056790079,0.1179374,2398.1,2397.7,4.17063]
[1728056790415,0.1179374,2398.1,2397.6,4.17069]
[1728056790624,0.1179374,2398.1,2398.0,4.17014]
[1728056790923,0.1179374,2398.1,2398.0,7.96364]
[1728056792495,0.1179374,2398.1,2398.0,3.0]
[1728056792696,0.1179374,2398.1,2398.0,7.17014]
[1728056793011,4.2879274,2398.1,2397.7,4.17057]
[1728056793191,4.2879274,2398.1,2397.8,3.0]
[1728056793517,0.0679374,2398.1,2397.7,4.17052]
[1728056793815,0.0679374,2398.1,2397.8,4.587512]
[1728056794021,0.0679374,2398.1,2397.8,0.417052]
[1728056794325,4.2379074,2398.1,2397.7,4.17064]
[1728056794510,4.2379074,2398.1,2397.7,8.34121]
[1728056794685,4.2379074,2398.1,2397.8,3.0]
[1728056795193,0.0679374,2398.1,2397.8,7.17036]
[1728056795986,0.0679374,2398.1,2397.8,11.34077]
[1728056796233,0.0679374,2398.1,2397.6,4.17069]
[1728056796520,0.0679374,2398.1,2397.9,4.17027]
[1728056796828,0.0679374,2398.1,2398.0,4.17014]
[1728056797117,0.0679374,2398.1,2397.9,4.17027]
[1728056797429,0.0679374,2398.1,2397.9,4.17024]
[1728056797786,0.0679374,2398.1,2398.0,0.417024]
[1728056798001,0.0679374,2398.1,2397.8,7.1704]
[1728056798186,0.0679374,2398.1,2397.8,7.17039]
[1728056801320,0.0679374,2398.1,2398.0,4.17014]
[1728056801700,0.0679374,2398.1,2398.0,7.17014]
[1728056802226,0.0679374,2398.1,2398.0,4.17014]
[1728056802389,0.0679374,2398.1,2397.8,7.17038]
[1728056802591,0.0679374,2398.1,2397.8,4.17041]
[1728056803098,0.0679374,2398.1,2397.6,0.7515]
[1728056803296,0.8076,2398.0,2397.6,7.17077]
[1728056803501,0.8076,2398.0,2397.7,4.17057]
[1728056803687,0.8076,2398.0,2397.8,4.17048]
[1728056803886,0.0679374,2398.1,2397.7,4.17057]
[1728056804420,4.2379374,2398.1,2397.7,4.17057]
[1728056804605,0.0679374,2398.1,2397.8,4.17047]
[1728056804811,4.2379174,2398.1,2397.7,4.17062]
[1728056805320,0.0679374,2398.1,2397.7,4.17062]
[1728056805630,4.2379274,2398.1,2397.7,4.17057]
[1728056806301,0.0679374,2398.1,2397.7,8.34113]
[1728056806647,4.2379174,2398.1,2397.7,4.17056]
[1728056806826,4.17077,2397.7,2397.2,4.96594]
[1728056807126,4.731734,2398.0,2397.4,4.17106]
[1728056807127,0.8126,2397.6,2397.4,4.17106]
[1728056807285,0.8126,2397.6,2397.2,4.1714]
[1728056807486,0.8126,2397.6,2397.3,4.17134]
[1728056808122,0.8126,2397.6,2397.4,4.1711]
[1728056808627,0.8126,2397.6,2397.3,4.17127]
[1728056808827,0.8126,2397.6,2397.2,4.17152]
[1728056809130,0.8126,2397.6,2397.4,4.17117]
[1728056809288,0.8126,2397.6,2397.3,4.17135]
[1728056809622,0.8126,2397.6,2397.1,4.17169]
[1728056809838,4.17102,2397.5,2397.1,4.17169]
[1728056810200,4.98353,2397.6,2397.1,8.34328]
[1728056810407,4.98353,2397.6,2397.2,4.17142]
[1728056810794,4.98353,2397.6,2397.1,8.3432]
[1728056810995,9.15449,2397.6,2397.1,4.17159]
[1728056811188,4.98353,2397.6,2397.1,8.34321]
[1728056811426,4.98353,2397.6,2397.1,4.17159]
[1728056811584,4.98353,2397.6,2397.2,4.17146]
[1728056811789,0.8126,2397.6,2397.2,4.17146]
[1728056812011,0.8126,2397.6,2397.4,4.17111]
[1728056812700,0.806,2397.8,2397.5,4.17101]
[1728056812899,0.806,2397.8,2397.6,4.17068]
[1728056813133,0.0679374,2398.1,2397.5,0.417101]
[1728056813134,0.806,2398.0,2397.7,4.17062]
[1728056813306,0.806,2398.0,2397.8,4.17034]
[1728056813627,0.806,2398.0,2397.7,4.17062]
[1728056814127,0.806,2398.0,2397.7,4.17059]
[1728056814329,0.806,2398.0,2397.6,4.1708]
[1728056814523,0.806,2398.0,2397.7,4.17056]
[1728056814726,4.97618,2398.0,2397.6,4.6295901]
[1728056815036,4.93455,2397.8,2397.4,4.17115]
[1728056815239,0.7639,2397.8,2397.1,7.17155]
[1728056815390,0.7639,2397.5,2397.1,7.17155]
[1728056815591,0.7639,2397.5,2397.1,4.17155]
[1728056815837,0.7639,2397.5,2397.2,4.1715]
[1728056818032,0.75,2397.7,2397.1,3.919134]
[1728056818219,0.75,2397.7,2397.2,4.17139]
[1728056818555,0.75,2397.7,2397.4,4.17118]
[1728056818922,0.75,2397.7,2397.4,4.17117]
[1728056819538,0.75,2397.7,2397.4,4.17116]
[1728056820451,0.75,2397.7,2397.4,8.34223]
[1728056820756,0.75,2397.7,2397.4,4.17107]
[1728056820972,0.8171,2397.9,2397.6,4.17083]
[1728056821123,4.98754,2397.9,2397.4,4.588267]
[1728056821329,4.17057,2397.8,2397.4,4.17116]
[1728056821518,0.8181,2397.7,2397.4,4.17116]
[1728056822237,0.8181,2397.7,2397.3,4.17124]
[1728056822871,0.8253,2397.4,2397.1,4.17167]
[1728056823160,0.8253,2397.4,2397.2,4.17143]
[1728056823455,0.8253,2397.4,2397.2,4.17153]
[1728056823958,0.8253,2397.4,2397.1,4.588837]
[1728056824124,0.8253,2397.4,2397.1,4.17167]
[1728056824320,0.8036,2397.7,2396.7,3.7694]
[1728056824548,0.8036,2397.7,2397.3,4.17118]
[1728056824965,0.8036,2397.7,2397.4,4.17111]
[1728056825263,0.8036,2397.7,2397.6,4.17083]
[1728056825574,0.8036,2397.7,2397.4,4.17118]
[1728056825926,0.8036,2397.7,2397.5,4.17094]
[1728056826165,0.8036,2397.7,2397.4,4.17111]
[1728056826459,0.8036,2397.7,2397.5,4.17091]
[1728056827653,4.17032,2397.9,2397.5,4.17091]
[1728056827852,4.17032,2397.9,2397.5,8.34184]
[1728056828054,4.17032,2397.9,2397.5,4.17091]
[1728056828232,0.7754,2398.0,2397.4,4.17104]
[1728056828427,4.17035,2397.9,2397.5,4.17101]
[1728056828630,0.7754,2398.0,2397.8,4.17041]
[1728056829053,0.7754,2398.0,2397.7,4.17062]
[1728056829778,0.7754,2398.0,2397.8,4.17039]
[1728056829986,0.0679374,2398.1,2397.8,4.17039]
[1728056830793,0.0679374,2398.1,2397.8,8.34079]
[1728056830955,0.0679374,2398.1,2397.8,4.17039]
[1728056831160,0.0679374,2398.1,2397.6,0.7538]
[1728056831161,0.0679374,2398.1,2397.7,4.17064]
[1728056831361,4.2379274,2398.1,2397.7,4.17064]
[1728056831858,4.2379274,2398.1,2397.7,4.17058]
[1728056832062,4.2379274,2398.1,2397.7,8.34115]
[1728056832474,0.0679374,2398.1,2397.9,4.17017]
[1728056832661,0.0679374,2398.1,2398.0,4.17014]
[1728056833049,0.0679374,2398.1,2397.7,4.17054]
[1728056833250,0.0679374,2398.1,2397.8,4.17034]
[1728056833553,0.0679374,2398.1,2397.9,4.17024]
[1728056834251,0.0679374,2398.1,2397.7,7.17055]
[1728056834453,0.7736,2398.0,2397.7,7.17058]
[1728056834676,0.7736,2398.0,2397.7,4.17065]
[1728056834851,4.94377,2398.0,2397.5,4.17093]
[1728056835163,4.17032,2397.9,2397.4,7.17105]
[1728056835360,4.17056,2397.8,2397.4,8.34216]
[1728056835571,4.17032,2397.9,2397.5,4.17094]
[1728056835773,0.7736,2398.0,2397.5,4.17094]
[1728056835984,0.7736,2398.0,2397.6,4.17082]
[1728056836186,0.0679374,2398.1,2397.9,4.17019]
[1728056836697,0.0679374,2398.1,2398.0,4.17014]
[1728056836854,0.0679374,2398.1,2397.9,4.17019]
[1728056837887,0.0679374,2398.1,2398.0,4.17014]
[1728056838381,0.0679374,2398.1,2397.9,4.17019]
[1728056838594,0.0679374,2398.1,2397.8,4.1704]
[1728056839349,0.0679374,2398.1,2398.0,4.17014]
[1728056839557,0.0679374,2398.1,2398.0,4.94854]
[1728056841197,0.0679374,2398.1,2398.0,4.17014]
[1728056842177,0.0679374,2398.1,2398.0,7.99814]
[1728056842381,0.0679374,2398.1,2398.0,8.54814]
[1728056842616,0.0679374,2398.1,2398.0,7.99814]
[1728056842916,0.0679374,2398.1,2398.0,7.17014]
[1728056843234,0.0679374,2398.1,2397.9,4.17028]
[1728056843387,0.8543374,2398.1,2397.9,4.17028]
[1728056843893,0.0679374,2398.1,2398.0,4.17014]
[1728056844497,0.0679374,2398.1,2398.0,7.17014]
[1728056844729,0.0679374,2398.1,2398.0,7.99134]
[1728056846207,0.0679374,2398.1,2398.0,12.460474]
[1728056846923,0.0679374,2398.1,2398.0,11.910474]
[1728056847083,0.0679374,2398.1,2398.0,7.99134]
[1728056847283,0.0679374,2398.1,2398.0,12.460474]
[1728056848528,0.0679374,2398.1,2398.0,12.879174]
[1728056850319,0.0679374,2398.1,2398.0,11.910474]
[1728056851008,0.0679374,2398.1,2398.0,4.99134]
[1728056851215,0.0679374,2398.1,2398.0,0.8212]
[1728056851521,0.0679374,2398.1,2398.0,4.17014]
[1728056852221,0.0679374,2398.1,2397.8,4.17041]
[1728056852397,0.0679374,2398.1,2397.7,4.99152]
[1728056852818,0.0679374,2398.1,2397.7,4.99147]
[1728056853010,0.0679374,2398.1,2397.7,4.99146]
[1728056853188,0.0679374,2398.1,2397.7,9.16203]
[1728056853388,0.0679374,2398.1,2397.7,4.99146]
[1728056853590,0.8454374,2398.1,2397.7,4.17065]
[1728056855240,0.8454374,2398.1,2397.6,4.17076]
[1728056856424,5.0154674,2398.1,2397.5,4.17098]
[1728056856736,5.0154674,2398.1,2397.3,4.98331]
[1728056856919,4.17018,2398.0,2397.4,3.0]
[1728056857244,0.8105,2397.9,2397.4,3.0]
[1728056857405,4.98082,2397.9,2397.4,3.0]
[1728056857950,0.8105,2397.9,2397.6,4.17076]
[1728056858477,0.8105,2397.9,2397.3,7.17123]
[1728056858618,0.8105,2397.9,2397.4,4.17111]
[1728056859014,0.8105,2397.9,2397.3,3.0]
[1728056859246,0.8105,2397.9,2397.5,4.1709]
[1728056859603,0.8105,2397.9,2397.6,4.17074]
[1728056859805,0.0679374,2398.1,2397.8,4.1704]
[1728056860038,0.0679374,2398.1,2397.8,4.17039]
[1728056860243,0.0679374,2398.1,2397.6,4.715734]
[1728056860407,0.0679374,2398.1,2397.8,4.17041]
[1728056861947,0.0679374,2398.1,2397.8,8.34081]
[1728056862316,0.0679374,2398.1,2397.8,4.1704]
[1728056862661,0.0679374,2398.1,2397.9,0.41704]